{"text_format":"1","workbook":"xlsx","n_sheets":29,"sheets":["Student Info","Attendance (2)","PrePost","Completion Dates","CP","AP","GEN Assignments","GEN Reports","MP","Student 1 ","Student 2","Student 3","Student 4","Student 5","Student 6","Student 7","Student 8","Student 9","Student 10","Student 11","Student 12","Student 13","Student 14","Student 15","Student 16","Student 17","Student 18","Student 19","Student 20"],"not_rendered":{"charts":80,"images":1,"macros":1,"external_links":4,"defined_names":0,"comments":0,"pivot_tables":0},"unopened":[],"bounds":{"document_bytes":16777216,"sheet_cells":100000,"rows_first":2000,"rows_last":500,"rows_between":2000,"halvings":0,"cell_chars":16384,"cell_head_chars":4096},"cells_cut":0,"cells_raw":0,"read":"whole","date_system":"1900"}

{"sheet":"Student Info","index":0,"n_rows":33,"n_cols":10,"rows_kept":33,"cut":false,"hidden":false,"merged":[[5,9,11,10]]}
[null,"STUDENT NAME","GRADE","IEP ","SEX","ELL STUDENT","RACE or ETHNICITY","Lexile Level","What is your LITERACY MEASURE?"]
[1,"AAAAA"]
[2,"bbbbbbbb"]
[3,"cccccccccc"]
[4,"ddddddddd"]
[5,"eeeeeeeeee",null,null,null,null,null,null,null,"COMPOUND/COMPLEX SENTENCES"]
[6,"fffffffff"]
[7,"gggggggg"]
[8,"hhhhhhh"]
[9,"iiiiiiii"]
[10,"jjjjjjjj"]
[11,"kkkkkkk"]
[12,"llllllll"]
[13,"mmmmmmmmm"]
[14,"nnnnnnnn"]
[15,"oooooooo"]
[16,"pppppppp"]
[17,"qqqqqqqqq"]
[18,"rrrrrrrr"]
[19,"sssssssss"]
[20,"tttttttttt"]
[]
[]
[]
[]
[]
[]
[]
[null,null,null,null,"IEPs",{"$f":"COUNTIF(D3:D22,\"Yes\")","v":0},"American Indian or Alaskan Native",{"$f":"COUNTIF(G3:G22,G29)","v":0}]
[null,null,null,null,"ELL",{"$f":"COUNTIF(F3:F22,\"Yes\")","v":0},"Asian or Pacific Islander",{"$f":"COUNTIF(G3:G22,G30)","v":0}]
[null,"Teacher",null,null,"Male",{"$f":"COUNTIF(E3:E22,\"Male\")","v":0},"Black, not of Hispanic Origin",{"$f":"COUNTIF(G3:G22,G31)","v":0}]
[null,"School",null,null,"Female",{"$f":"COUNTIF(E3:E22,\", Female\")","v":0},"Hispanic",{"$f":"COUNTIF(G3:G22,G32)","v":0}]
[null,"Class Period",null,null,null,null,"White, not of Hispanic Origin",{"$f":"COUNTIF(G3:G22,G33)","v":0}]

{"sheet":"Attendance (2)","index":1,"n_rows":26,"n_cols":3,"rows_kept":26,"cut":false,"hidden":false,"merged":[[1,0,1,7],[2,0,3,0],[2,2,2,14]]}
[]
["Compound-Complex Sentences :  Attendance"]
[null,"DO NOT TYPE IN THIS COLUMN","Instructions:  Fill in each date of instruction.  Type an \"X\" in that column for each student instructed that day.  Total \"X\"'s are tabulated in COLUMN B.  "]
[null,"Dates of Instruction:","2015-09-01"]
["Student Name","TOTAL DAYS"]
[{"$f":"'[3]Student Information'!B2","v":"Jennifer Example"},{"$f":"COUNTA(C6:FC6)","v":1},"X"]
[{"$f":"'[2]Student Information'!B2","v":0},{"$f":"COUNTA(C7:FC7)","v":0}]
[{"$f":"'[2]Student Information'!B3","v":0},{"$f":"COUNTA(C8:FC8)","v":0}]
[{"$f":"'[2]Student Information'!B4","v":0},{"$f":"COUNTA(C9:FC9)","v":0}]
[{"$f":"'[2]Student Information'!B5","v":0},{"$f":"COUNTA(C10:FC10)","v":0}]
[{"$f":"'[2]Student Information'!B6","v":0},{"$f":"COUNTA(C11:FC11)","v":0}]
[{"$f":"'[2]Student Information'!B7","v":0},{"$f":"COUNTA(C12:FC12)","v":0}]
[{"$f":"'[2]Student Information'!B8","v":0},{"$f":"COUNTA(C13:FC13)","v":0}]
[{"$f":"'[2]Student Information'!B9","v":0},{"$f":"COUNTA(C14:FC14)","v":0}]
[{"$f":"'[2]Student Information'!B10","v":0},{"$f":"COUNTA(C15:FC15)","v":0}]
[{"$f":"'[2]Student Information'!B11","v":0},{"$f":"COUNTA(C16:FC16)","v":0}]
[{"$f":"'[2]Student Information'!B12","v":0},{"$f":"COUNTA(C17:FC17)","v":0}]
[{"$f":"'[2]Student Information'!B13","v":0},{"$f":"COUNTA(C18:FC18)","v":0}]
[{"$f":"'[2]Student Information'!B14","v":0},{"$f":"COUNTA(C19:FC19)","v":0}]
[{"$f":"'[2]Student Information'!B15","v":0},{"$f":"COUNTA(C20:FC20)","v":0}]
[{"$f":"'[2]Student Information'!B16","v":0},{"$f":"COUNTA(C21:FC21)","v":0}]
[{"$f":"'[2]Student Information'!B17","v":0},{"$f":"COUNTA(C22:FC22)","v":0}]
[{"$f":"'[2]Student Information'!B18","v":0},{"$f":"COUNTA(C23:FC23)","v":0}]
[{"$f":"'[2]Student Information'!B19","v":0},{"$f":"COUNTA(C24:FC24)","v":0}]
[{"$f":"'[2]Student Information'!B20","v":0},{"$f":"COUNTA(C25:FC25)","v":0}]
[{"$f":"'[2]Student Information'!B21","v":0},{"$f":"COUNTA(C26:FC26)","v":0}]

{"sheet":"PrePost","index":2,"n_rows":28,"n_cols":11,"rows_kept":28,"cut":false,"hidden":false,"merged":[[0,1,4,8],[4,9,4,21],[30,1,33,4]]}
[null,"Compound/Complex Sentences"]
[null,null,null,null,null,null,null,null,null,"Teacher",{"$f":"'Student Info'!C31","v":0}]
[null,null,null,null,null,null,null,null,null,"School",{"$f":"'Student Info'!C32","v":0}]
[null,null,null,null,null,null,null,null,null,"Period",{"$f":"'Student Info'!C33","v":0}]
[null,null,null,null,null,null,null,null,null,"Use Date format: xx/xx/xx"]
[null,"PRE TEST and POST TEST "]
[null,"Student Names","Date of      Pre Test","Complete","Complicated","Punctuated","Date of   Post Test","Complete","Complicated","Punctuated","Days from Pre to Post Test"]
[1,{"$f":"'Student Info'!B2","v":"AAAAA"},null,null,null,null,null,null,null,null,{"$f":"G8-C8","v":0}]
[2,{"$f":"'Student Info'!B3","v":"bbbbbbbb"},null,null,null,null,null,null,null,null,{"$f":"G9-C9","v":0}]
[3,{"$f":"'Student Info'!B4","v":"cccccccccc"},null,null,null,null,null,null,null,null,{"$f":"G10-C10","v":0}]
[4,{"$f":"'Student Info'!B5","v":"ddddddddd"},null,null,null,null,null,null,null,null,0]
[5,{"$f":"'Student Info'!B6","v":"eeeeeeeeee"},null,null,null,null,null,null,null,null,0]
[6,{"$f":"'Student Info'!B7","v":"fffffffff"},null,null,null,null,null,null,null,null,0]
[7,{"$f":"'Student Info'!B8","v":"gggggggg"},null,null,null,null,null,null,null,null,0]
[8,{"$f":"'Student Info'!B9","v":"hhhhhhh"},null,null,null,null,null,null,null,null,0]
[9,{"$f":"'Student Info'!B10","v":"iiiiiiii"},null,null,null,null,null,null,null,null,0]
[10,{"$f":"'Student Info'!B11","v":"jjjjjjjj"},null,null,null,null,null,null,null,null,0]
[11,{"$f":"'Student Info'!B12","v":"kkkkkkk"},null,null,null,null,null,null,null,null,0]
[12,{"$f":"'Student Info'!B13","v":"llllllll"},null,null,null,null,null,null,null,null,0]
[13,{"$f":"'Student Info'!B14","v":"mmmmmmmmm"},null,null,null,null,null,null,null,null,0]
[14,{"$f":"'Student Info'!B15","v":"nnnnnnnn"},null,null,null,null,null,null,null,null,0]
[15,{"$f":"'Student Info'!B16","v":"oooooooo"},null,null,null,null,null,null,null,null,0]
[16,{"$f":"'Student Info'!B17","v":"pppppppp"},null,null,null,null,null,null,null,null,0]
[17,{"$f":"'Student Info'!B18","v":"qqqqqqqqq"},null,null,null,null,null,null,null,null,0]
[18,{"$f":"'Student Info'!B19","v":"rrrrrrrr"},null,null,null,null,null,null,null,null,0]
[19,{"$f":"'Student Info'!B20","v":"sssssssss"},null,null,null,null,null,null,null,null,0]
[20,{"$f":"'Student Info'!B21","v":"tttttttttt"},null,null,null,null,null,null,null,null,0]
[null,"Average",null,{"$f":"AVERAGE(D8:D27)","v":{"$error":"#DIV/0!"}},{"$f":"AVERAGE(E8:E27)","v":{"$error":"#DIV/0!"}},{"$f":"AVERAGE(F8:F27)","v":{"$error":"#DIV/0!"}},null,{"$f":"AVERAGE(H8:H27)","v":{"$error":"#DIV/0!"}},{"$error":"#DIV/0!"},{"$f":"AVERAGE(J8:J27)","v":{"$error":"#DIV/0!"}}]

{"sheet":"Completion Dates","index":3,"n_rows":27,"n_cols":17,"rows_kept":27,"cut":false,"hidden":false,"merged":[[0,0,4,7],[4,8,4,20],[29,1,32,4]]}
["Compound/Complex Sentences: COMPLETION DATES"]
[null,null,null,null,null,null,null,null,null,null,null,null,null,null,null,"Teacher",{"$f":"'[1]Student Info'!C31","v":0}]
[null,null,null,null,null,null,null,null,null,null,null,null,null,null,null,"School",{"$f":"'[1]Student Info'!C32","v":0}]
[null,null,null,null,null,null,null,null,null,null,null,null,null,null,null,"Period",{"$f":"'[1]Student Info'!C33","v":0}]
[null,null,null,null,null,null,null,null,"Use Date format: xx/xx/xx"]
[null,"Student Names","Date Completed S2 DESCRIBE","Date Completed S3 Model","Date Completed S4 Verbal Practice","Date Completed S5 CP","Date Completed S6i AP/Post","Date Completed: S7 Make Commitments for Generalization","Date Completed: S8 Generalization Orientation","Date Completed: S8 Generalization Activation","Date Completed: S8 Generalization Adaptation"]
[1,{"$f":"'Student Info'!B2","v":"AAAAA"}]
[2,{"$f":"'Student Info'!B3","v":"bbbbbbbb"}]
[3,{"$f":"'Student Info'!B4","v":"cccccccccc"}]
[4,{"$f":"'Student Info'!B5","v":"ddddddddd"}]
[5,{"$f":"'Student Info'!B6","v":"eeeeeeeeee"}]
[6,{"$f":"'Student Info'!B7","v":"fffffffff"}]
[7,{"$f":"'Student Info'!B8","v":"gggggggg"}]
[8,{"$f":"'Student Info'!B9","v":"hhhhhhh"}]
[9,{"$f":"'Student Info'!B10","v":"iiiiiiii"}]
[10,{"$f":"'Student Info'!B11","v":"jjjjjjjj"}]
[11,{"$f":"'Student Info'!B12","v":"kkkkkkk"}]
[12,{"$f":"'Student Info'!B13","v":"llllllll"}]
[13,{"$f":"'Student Info'!B14","v":"mmmmmmmmm"}]
[14,{"$f":"'Student Info'!B15","v":"nnnnnnnn"}]
[15,{"$f":"'Student Info'!B16","v":"oooooooo"}]
[16,{"$f":"'Student Info'!B17","v":"pppppppp"}]
[17,{"$f":"'Student Info'!B18","v":"qqqqqqqqq"}]
[18,{"$f":"'Student Info'!B19","v":"rrrrrrrr"}]
[19,{"$f":"'Student Info'!B20","v":"sssssssss"}]
[20,{"$f":"'Student Info'!B21","v":"tttttttttt"}]
[null,"Average"]

{"sheet":"CP","index":4,"n_rows":28,"n_cols":55,"rows_kept":28,"cut":false,"hidden":false,"merged":[[0,1,0,6]]}
[null,"Compound/Complex Sentences: CONTROLLED PRACTICE"]
[null,"Student Names","Date of Controlled Practice 1","Date of Final Controlled Practice","VP Quiz Date","VP Quiz Score","Days to complete","Date 1A","Score 1A","Date 1B","Score 1B","Date 1C","Score 1C","Date 1D","Score 1D","Date 2A","Score 2A","Date 2B","Score 2B","Date 2C","Score 2C","Date 2D","Score 2D","Date 3A","Score 3A","Date 3B","Score 3B","Date 3C","Score 3C","Date 3D","Score 3D","Date 4A","Score 4A","Date 4B","Score 4B","Date 4C","Score 4C","Date 4D","Score 4D","Date 5A","Score 5A","Date 5B","Score 5B","Date 5C","Score 5C","Date 5D","Score 5D","Date 6A","Score 6A","Date 6B","Score 6B","Date 6C","Score 6C","Date 6D","Score 6D"]
[1,{"$f":"'Student Info'!B2","v":"AAAAA"},null,null,null,null,{"$f":"D3-C3","v":0}]
[2,{"$f":"'Student Info'!B3","v":"bbbbbbbb"},null,null,null,null,{"$f":"D4-C4","v":0}]
[3,{"$f":"'Student Info'!B4","v":"cccccccccc"},null,null,null,null,{"$f":"D5-C5","v":0}]
[4,{"$f":"'Student Info'!B5","v":"ddddddddd"},null,null,null,null,0]
[5,{"$f":"'Student Info'!B6","v":"eeeeeeeeee"},null,null,null,null,0]
[6,{"$f":"'Student Info'!B7","v":"fffffffff"},null,null,null,null,0]
[7,{"$f":"'Student Info'!B8","v":"gggggggg"},null,null,null,null,0]
[8,{"$f":"'Student Info'!B9","v":"hhhhhhh"},null,null,null,null,0]
[9,{"$f":"'Student Info'!B10","v":"iiiiiiii"},null,null,null,null,0]
[10,{"$f":"'Student Info'!B11","v":"jjjjjjjj"},null,null,null,null,0]
[11,{"$f":"'Student Info'!B12","v":"kkkkkkk"},null,null,null,null,0]
[12,{"$f":"'Student Info'!B13","v":"llllllll"},null,null,null,null,0]
[13,{"$f":"'Student Info'!B14","v":"mmmmmmmmm"},null,null,null,null,0]
[14,{"$f":"'Student Info'!B15","v":"nnnnnnnn"},null,null,null,null,0]
[15,{"$f":"'Student Info'!B16","v":"oooooooo"},null,null,null,null,0]
[16,{"$f":"'Student Info'!B17","v":"pppppppp"},null,null,null,null,0]
[17,{"$f":"'Student Info'!B18","v":"qqqqqqqqq"},null,null,null,null,0]
[18,{"$f":"'Student Info'!B19","v":"rrrrrrrr"},null,null,null,null,0]
[19,{"$f":"'Student Info'!B20","v":"sssssssss"},null,null,null,null,0]
[20,{"$f":"'Student Info'!B21","v":"tttttttttt"},null,null,null,null,{"$f":"D22-C22","v":0}]
["Average","Average",null,null,null,null,{"$f":"AVERAGE(G3:G22)","v":0},null,{"$f":"AVERAGE(I3:I22)","v":{"$error":"#DIV/0!"}},null,{"$f":"AVERAGE(K3:K22)","v":{"$error":"#DIV/0!"}},null,{"$f":"AVERAGE(M3:M22)","v":{"$error":"#DIV/0!"}},null,{"$f":"AVERAGE(O3:O22)","v":{"$error":"#DIV/0!"}},null,{"$f":"AVERAGE(Q3:Q22)","v":{"$error":"#DIV/0!"}},null,{"$f":"AVERAGE(S3:S22)","v":{"$error":"#DIV/0!"}},null,{"$f":"AVERAGE(U3:U22)","v":{"$error":"#DIV/0!"}},null,{"$f":"AVERAGE(W3:W22)","v":{"$error":"#DIV/0!"}},null,{"$f":"AVERAGE(Y3:Y22)","v":{"$error":"#DIV/0!"}},null,{"$f":"AVERAGE(AA3:AA22)","v":{"$error":"#DIV/0!"}},null,{"$f":"AVERAGE(AC3:AC22)","v":{"$error":"#DIV/0!"}},null,{"$f":"AVERAGE(AE3:AE22)","v":{"$error":"#DIV/0!"}},null,{"$f":"AVERAGE(AG3:AG22)","v":{"$error":"#DIV/0!"}},null,{"$f":"AVERAGE(AI3:AI22)","v":{"$error":"#DIV/0!"}},null,{"$f":"AVERAGE(AK3:AK22)","v":{"$error":"#DIV/0!"}},null,{"$f":"AVERAGE(AM3:AM22)","v":{"$error":"#DIV/0!"}},null,{"$f":"AVERAGE(AO3:AO22)","v":{"$error":"#DIV/0!"}},null,{"$f":"avERAGE","v":{"$error":"#NAME?"}},null,{"$f":"AVERAGE(AS3:AS22)","v":{"$error":"#DIV/0!"}},null,{"$f":"AVERAGE(AU3:AU22)","v":{"$error":"#DIV/0!"}},null,{"$f":"AVERAGE(AW3:AW22)","v":{"$error":"#DIV/0!"}},null,{"$f":"AVERAGE(AY3:AY22)","v":{"$error":"#DIV/0!"}},null,{"$f":"AVERAGE(BA3:BA22)","v":{"$error":"#DIV/0!"}},null,{"$f":"AVERAGE(BC3:BC22)","v":{"$error":"#DIV/0!"}}]
[]
[null,null,null,null,null,null,null,null,null,null,null,null,{"$f":"PrePost!L8","v":0},"Simple Sentences"]
[null,null,null,null,null,null,null,null,null,null,null,null,{"$f":"PrePost!L9","v":0},"Compound Sentences"]
[null,null,null,null,null,null,null,null,null,null,null,null,{"$f":"PrePost!L10","v":0},"Complex Sentences"]
[null,null,null,null,null,null,null,null,null,null,null,null,{"$f":"PrePost!L11","v":0},"Compound/Complex Sentences"]

{"sheet":"AP","index":5,"n_rows":27,"n_cols":18,"rows_kept":27,"cut":false,"hidden":false,"merged":[[0,0,4,2],[4,3,4,15],[29,1,32,4]]}
["Compound/Complex Sentences: ADVANCED PRACTICE"]
[null,null,null,"Teacher",{"$f":"'Student Info'!C31","v":0}]
[null,null,null,"School",{"$f":"'Student Info'!C32","v":0}]
[null,null,null,"Period",{"$f":"'Student Info'!C33","v":0}]
[null,null,null,"Use Date format: xx/xx/xx"]
[null,"Student Names","AP 7A Date ","AP 7A Complete","AP 7A Complicated","AP 7A Punctuated","AP 7B Date ","AP 7B Complete","AP 7B Complcated","AP 7B Punctuated","AP 7C Date","AP 7C Complete","AP 7C Complicated","AP 7C Punctuated","AP 7D Date","AP 7D Complete","AP 7D Complicated","AP 7D Punctuated"]
[1,{"$f":"'Student Info'!B2","v":"AAAAA"}]
[2,{"$f":"'Student Info'!B3","v":"bbbbbbbb"}]
[3,{"$f":"'Student Info'!B4","v":"cccccccccc"}]
[4,{"$f":"'Student Info'!B5","v":"ddddddddd"}]
[5,{"$f":"'Student Info'!B6","v":"eeeeeeeeee"}]
[6,{"$f":"'Student Info'!B7","v":"fffffffff"}]
[7,{"$f":"'Student Info'!B8","v":"gggggggg"}]
[8,{"$f":"'Student Info'!B9","v":"hhhhhhh"}]
[9,{"$f":"'Student Info'!B10","v":"iiiiiiii"}]
[10,{"$f":"'Student Info'!B11","v":"jjjjjjjj"}]
[11,{"$f":"'Student Info'!B12","v":"kkkkkkk"}]
[12,{"$f":"'Student Info'!B13","v":"llllllll"}]
[13,{"$f":"'Student Info'!B14","v":"mmmmmmmmm"}]
[14,{"$f":"'Student Info'!B15","v":"nnnnnnnn"}]
[15,{"$f":"'Student Info'!B16","v":"oooooooo"}]
[16,{"$f":"'Student Info'!B17","v":"pppppppp"}]
[17,{"$f":"'Student Info'!B18","v":"qqqqqqqqq"}]
[18,{"$f":"'Student Info'!B19","v":"rrrrrrrr"}]
[19,{"$f":"'Student Info'!B20","v":"sssssssss"}]
[20,{"$f":"'Student Info'!B21","v":"tttttttttt"}]
[null,"Average",null,{"$f":"AVERAGE(D7:D26)","v":{"$error":"#DIV/0!"}},null,{"$error":"#DIV/0!"},null,{"$error":"#DIV/0!"},null,{"$error":"#DIV/0!"},null,{"$f":"AVERAGE(L7:L26)","v":{"$error":"#DIV/0!"}},null,{"$f":"AVERAGE(N7:N26)","v":{"$error":"#DIV/0!"}},null,{"$f":"AVERAGE(P7:P26)","v":{"$error":"#DIV/0!"}},null,{"$f":"AVERAGE(R7:R26)","v":{"$error":"#DIV/0!"}}]

{"sheet":"GEN Assignments","index":6,"n_rows":27,"n_cols":26,"rows_kept":27,"cut":false,"hidden":false,"merged":[[0,0,4,2],[4,3,4,15],[29,1,32,4]]}
["Compound/Complex Sentences: GENERALIZATION: ASSIGNMENTS"]
[null,null,null,"Teacher",{"$f":"'Student Info'!C31","v":0}]
[null,null,null,"School",{"$f":"'Student Info'!C32","v":0}]
[null,null,null,"Period",{"$f":"'Student Info'!C33","v":0}]
[null,null,null,"Use Date format: xx/xx/xx"]
[null,"Student Names","Assign 1 Date ","Assign 1 Complete","Assign 1 Complicated","Assign 1 Punctuated","Assign 2 Date ","Assign 2 Complete","Assign 2 Complcated","Assign 2 Punctuated","Assign 3 Date","Assign 3 Complete","Assign 3 Complicated","Assign 3 Punctuated","Assign 4 Date","Assign 4 Complete","Assign 4  Complicated","Assign 4 Punctuated","Assign 5 Date ","Assign 5 Complete","Assign 5 Complicated","Assign 5 Punctuated","Assign 6 Date ","Assign 6 Complete","Assign 6 Complcated","Assign 6 Punctuated"]
[1,{"$f":"'Student Info'!B2","v":"AAAAA"}]
[2,{"$f":"'Student Info'!B3","v":"bbbbbbbb"}]
[3,{"$f":"'Student Info'!B4","v":"cccccccccc"}]
[4,{"$f":"'Student Info'!B5","v":"ddddddddd"}]
[5,{"$f":"'Student Info'!B6","v":"eeeeeeeeee"}]
[6,{"$f":"'Student Info'!B7","v":"fffffffff"}]
[7,{"$f":"'Student Info'!B8","v":"gggggggg"}]
[8,{"$f":"'Student Info'!B9","v":"hhhhhhh"}]
[9,{"$f":"'Student Info'!B10","v":"iiiiiiii"}]
[10,{"$f":"'Student Info'!B11","v":"jjjjjjjj"}]
[11,{"$f":"'Student Info'!B12","v":"kkkkkkk"}]
[12,{"$f":"'Student Info'!B13","v":"llllllll"}]
[13,{"$f":"'Student Info'!B14","v":"mmmmmmmmm"}]
[14,{"$f":"'Student Info'!B15","v":"nnnnnnnn"}]
[15,{"$f":"'Student Info'!B16","v":"oooooooo"}]
[16,{"$f":"'Student Info'!B17","v":"pppppppp"}]
[17,{"$f":"'Student Info'!B18","v":"qqqqqqqqq"}]
[18,{"$f":"'Student Info'!B19","v":"rrrrrrrr"}]
[19,{"$f":"'Student Info'!B20","v":"sssssssss"}]
[20,{"$f":"'Student Info'!B21","v":"tttttttttt"}]
[null,"Average",null,{"$f":"AVERAGE(D7:D26)","v":{"$error":"#DIV/0!"}},null,{"$error":"#DIV/0!"},null,{"$error":"#DIV/0!"},null,{"$error":"#DIV/0!"},null,{"$f":"AVERAGE(L7:L26)","v":{"$error":"#DIV/0!"}},null,{"$f":"AVERAGE(N7:N26)","v":{"$error":"#DIV/0!"}},null,{"$f":"AVERAGE(P7:P26)","v":{"$error":"#DIV/0!"}},null,{"$f":"AVERAGE(R7:R26)","v":{"$error":"#DIV/0!"}}]

{"sheet":"GEN Reports","index":7,"n_rows":27,"n_cols":18,"rows_kept":27,"cut":false,"hidden":false,"merged":[[0,0,4,2],[4,3,4,15],[29,1,32,4]]}
["Compound/Complex Sentences: GENERALIZATION: REPORTS"]
[null,null,null,null,null,null,"Teacher",{"$f":"'Student Info'!C31","v":0}]
[null,null,null,null,null,null,"School",{"$f":"'Student Info'!C32","v":0}]
[null,null,null,null,null,null,"Period",{"$f":"'Student Info'!C33","v":0}]
[null,null,null,"Use Date format: xx/xx/xx"]
[null,"Student Names","Report 1 Date ","Report 1 Complete","Report 1 Complicated","Report 1 Punctuated","Report 2 Date ","Report 2 Complete","Report 2 Complcated","Report 2 Punctuated","Report 3 Date","Report 3 Complete","Report 3 Complicated","Report 3 Punctuated","Report 4 Date","Report 4 Complete","Report 4  Complicated","Report 4 Punctuated"]
[1,{"$f":"'Student Info'!B2","v":"AAAAA"}]
[2,{"$f":"'Student Info'!B3","v":"bbbbbbbb"}]
[3,{"$f":"'Student Info'!B4","v":"cccccccccc"}]
[4,{"$f":"'Student Info'!B5","v":"ddddddddd"}]
[5,{"$f":"'Student Info'!B6","v":"eeeeeeeeee"}]
[6,{"$f":"'Student Info'!B7","v":"fffffffff"}]
[7,{"$f":"'Student Info'!B8","v":"gggggggg"}]
[8,{"$f":"'Student Info'!B9","v":"hhhhhhh"}]
[9,{"$f":"'Student Info'!B10","v":"iiiiiiii"}]
[10,{"$f":"'Student Info'!B11","v":"jjjjjjjj"}]
[11,{"$f":"'Student Info'!B12","v":"kkkkkkk"}]
[12,{"$f":"'Student Info'!B13","v":"llllllll"}]
[13,{"$f":"'Student Info'!B14","v":"mmmmmmmmm"}]
[14,{"$f":"'Student Info'!B15","v":"nnnnnnnn"}]
[15,{"$f":"'Student Info'!B16","v":"oooooooo"}]
[16,{"$f":"'Student Info'!B17","v":"pppppppp"}]
[17,{"$f":"'Student Info'!B18","v":"qqqqqqqqq"}]
[18,{"$f":"'Student Info'!B19","v":"rrrrrrrr"}]
[19,{"$f":"'Student Info'!B20","v":"sssssssss"}]
[20,{"$f":"'Student Info'!B21","v":"tttttttttt"}]
[null,"Average",null,{"$f":"AVERAGE(D7:D26)","v":{"$error":"#DIV/0!"}},null,{"$error":"#DIV/0!"},null,{"$error":"#DIV/0!"},null,{"$error":"#DIV/0!"},null,{"$f":"AVERAGE(L7:L26)","v":{"$error":"#DIV/0!"}},null,{"$f":"AVERAGE(N7:N26)","v":{"$error":"#DIV/0!"}},null,{"$f":"AVERAGE(P7:P26)","v":{"$error":"#DIV/0!"}},null,{"$f":"AVERAGE(R7:R26)","v":{"$error":"#DIV/0!"}}]

{"sheet":"MP","index":8,"n_rows":27,"n_cols":26,"rows_kept":27,"cut":false,"hidden":false,"merged":[[0,0,4,2],[4,3,4,15],[29,1,32,4]]}
["Compound/Complex Sentences: MAINTENANCE PROBES"]
[null,null,null,"Teacher",{"$f":"'Student Info'!C31","v":0}]
[null,null,null,"School",{"$f":"'Student Info'!C32","v":0}]
[null,null,null,"Period",{"$f":"'Student Info'!C33","v":0}]
[null,null,null,"Use Date format: xx/xx/xx"]
[null,"Student Names","MP 1 Date ","MP 1 Complete","MP 1 Complicated","MP 1 Punctuated","MP 2 Date ","MP 2 Complete","MP 2 Complcated","MP 2 Punctuated","MP 3 Date","MP 3 Complete","MP 3 Complicated","MP 3 Punctuated","MP 4 Date","MP 4 Complete","MP 4  Complicated","MP 4 Punctuated","MP 5 Date ","MP 5 Complete","MP 5 Complicated","MP 5 Punctuated","MP 6 Date ","MP 6 Complete","MP 6 Complcated","MP 6 Punctuated"]
[1,{"$f":"'Student Info'!B2","v":"AAAAA"}]
[2,{"$f":"'Student Info'!B3","v":"bbbbbbbb"}]
[3,{"$f":"'Student Info'!B4","v":"cccccccccc"}]
[4,{"$f":"'Student Info'!B5","v":"ddddddddd"}]
[5,{"$f":"'Student Info'!B6","v":"eeeeeeeeee"}]
[6,{"$f":"'Student Info'!B7","v":"fffffffff"}]
[7,{"$f":"'Student Info'!B8","v":"gggggggg"}]
[8,{"$f":"'Student Info'!B9","v":"hhhhhhh"}]
[9,{"$f":"'Student Info'!B10","v":"iiiiiiii"}]
[10,{"$f":"'Student Info'!B11","v":"jjjjjjjj"}]
[11,{"$f":"'Student Info'!B12","v":"kkkkkkk"}]
[12,{"$f":"'Student Info'!B13","v":"llllllll"}]
[13,{"$f":"'Student Info'!B14","v":"mmmmmmmmm"}]
[14,{"$f":"'Student Info'!B15","v":"nnnnnnnn"}]
[15,{"$f":"'Student Info'!B16","v":"oooooooo"}]
[16,{"$f":"'Student Info'!B17","v":"pppppppp"}]
[17,{"$f":"'Student Info'!B18","v":"qqqqqqqqq"}]
[18,{"$f":"'Student Info'!B19","v":"rrrrrrrr"}]
[19,{"$f":"'Student Info'!B20","v":"sssssssss"}]
[20,{"$f":"'Student Info'!B21","v":"tttttttttt"}]
[null,"Average",null,{"$f":"AVERAGE(D7:D26)","v":{"$error":"#DIV/0!"}},null,{"$error":"#DIV/0!"},null,{"$error":"#DIV/0!"},null,{"$error":"#DIV/0!"},null,{"$f":"AVERAGE(L7:L26)","v":{"$error":"#DIV/0!"}},null,{"$f":"AVERAGE(N7:N26)","v":{"$error":"#DIV/0!"}},null,{"$f":"AVERAGE(P7:P26)","v":{"$error":"#DIV/0!"}},null,{"$f":"AVERAGE(R7:R26)","v":{"$error":"#DIV/0!"}}]

{"sheet":"Student 1 ","index":9,"n_rows":10,"n_cols":14,"rows_kept":10,"cut":false,"hidden":false,"merged":[[5,2,5,9]]}
[]
[]
[]
[]
[null,null,null,null,null,null,null,null,null,null,null,"Teacher",{"$f":"'Student Info'!C31","v":0}]
[null,null,{"$f":"'Student Info'!B2","v":"AAAAA"},null,null,null,null,null,null,null,null,"School",{"$f":"#REF!","v":{"$error":"#REF!"}}]
[null,null,null,null,null,null,null,null,null,null,null,"Class Period",{"$f":"#REF!","v":{"$error":"#REF!"}}]
[]
[]
[null,null,null,null,null,null,null,null,null,null,null,null,"Days From Pretest to Post Test",{"$f":"PrePost!K8","v":0}]

{"sheet":"Student 2","index":10,"n_rows":10,"n_cols":14,"rows_kept":10,"cut":false,"hidden":false,"merged":[[5,2,5,9]]}
[]
[]
[]
[]
[null,null,null,null,null,null,null,null,null,null,null,"Teacher",{"$f":"'Student Info'!C31","v":0}]
[null,null,{"$f":"'Student Info'!B3","v":"bbbbbbbb"},null,null,null,null,null,null,null,null,"School",{"$f":"#REF!","v":{"$error":"#REF!"}}]
[null,null,null,null,null,null,null,null,null,null,null,"Class Period",{"$f":"#REF!","v":{"$error":"#REF!"}}]
[]
[]
[null,null,null,null,null,null,null,null,null,null,null,null,"Days From Pretest to Generalization",{"$f":"PrePost!K9","v":0}]

{"sheet":"Student 3","index":11,"n_rows":10,"n_cols":15,"rows_kept":10,"cut":false,"hidden":false,"merged":[[5,2,5,9]]}
[]
[]
[]
[]
[null,null,null,null,null,null,null,null,null,null,null,"Teacher",{"$f":"'Student Info'!C31","v":0},null,{"$f":"'Student Info'!B4","v":"cccccccccc"}]
[null,null,{"$f":"'Student Info'!B4","v":"cccccccccc"},null,null,null,null,null,null,null,null,"School",{"$f":"#REF!","v":{"$error":"#REF!"}},null,{"$f":"'Student Info'!B4","v":"cccccccccc"}]
[null,null,null,null,null,null,null,null,null,null,null,"Class Period",{"$f":"#REF!","v":{"$error":"#REF!"}},null,{"$f":"'Student Info'!B4","v":"cccccccccc"}]
[]
[]
[null,null,null,null,null,null,null,null,null,null,null,null,"Days From Pretest to Generalization",{"$f":"PrePost!K10","v":0}]

{"sheet":"Student 4","index":12,"n_rows":10,"n_cols":14,"rows_kept":10,"cut":false,"hidden":false,"merged":[[5,2,5,9]]}
[]
[]
[]
[]
[null,null,null,null,null,null,null,null,null,null,null,"Teacher",{"$f":"'Student Info'!C31","v":0}]
[null,null,{"$f":"'Student Info'!B5","v":"ddddddddd"},null,null,null,null,null,null,null,null,"School",{"$f":"#REF!","v":{"$error":"#REF!"}}]
[null,null,null,null,null,null,null,null,null,null,null,"Class Period",{"$f":"#REF!","v":{"$error":"#REF!"}}]
[]
[]
[null,null,null,null,null,null,null,null,null,null,null,null,"Days From Pretest to Post Test",{"$f":"PrePost!K8","v":0}]

{"sheet":"Student 5","index":13,"n_rows":10,"n_cols":14,"rows_kept":10,"cut":false,"hidden":false,"merged":[[5,2,5,9]]}
[]
[]
[]
[]
[null,null,null,null,null,null,null,null,null,null,null,"Teacher",{"$f":"'Student Info'!C31","v":0}]
[null,null,{"$f":"'Student Info'!B6","v":"eeeeeeeeee"},null,null,null,null,null,null,null,null,"School",{"$f":"#REF!","v":{"$error":"#REF!"}}]
[null,null,null,null,null,null,null,null,null,null,null,"Class Period",{"$f":"#REF!","v":{"$error":"#REF!"}}]
[]
[]
[null,null,null,null,null,null,null,null,null,null,null,null,"Days From Pretest to Post Test",{"$f":"PrePost!K8","v":0}]

{"sheet":"Student 6","index":14,"n_rows":10,"n_cols":14,"rows_kept":10,"cut":false,"hidden":false,"merged":[[5,2,5,9]]}
[]
[]
[]
[]
[null,null,null,null,null,null,null,null,null,null,null,"Teacher",{"$f":"'Student Info'!C31","v":0}]
[null,null,{"$f":"'Student Info'!B7","v":"fffffffff"},null,null,null,null,null,null,null,null,"School",{"$f":"#REF!","v":{"$error":"#REF!"}}]
[null,null,null,null,null,null,null,null,null,null,null,"Class Period",{"$f":"#REF!","v":{"$error":"#REF!"}}]
[]
[]
[null,null,null,null,null,null,null,null,null,null,null,null,"Days From Pretest to Post Test",{"$f":"PrePost!K8","v":0}]

{"sheet":"Student 7","index":15,"n_rows":10,"n_cols":14,"rows_kept":10,"cut":false,"hidden":false,"merged":[[5,2,5,9]]}
[]
[]
[]
[]
[null,null,null,null,null,null,null,null,null,null,null,"Teacher",{"$f":"'Student Info'!C31","v":0}]
[null,null,{"$f":"'Student Info'!B8","v":"gggggggg"},null,null,null,null,null,null,null,null,"School",{"$f":"#REF!","v":{"$error":"#REF!"}}]
[null,null,null,null,null,null,null,null,null,null,null,"Class Period",{"$f":"#REF!","v":{"$error":"#REF!"}}]
[]
[]
[null,null,null,null,null,null,null,null,null,null,null,null,"Days From Pretest to Post Test",{"$f":"PrePost!K8","v":0}]

{"sheet":"Student 8","index":16,"n_rows":10,"n_cols":14,"rows_kept":10,"cut":false,"hidden":false,"merged":[[5,2,5,9]]}
[]
[]
[]
[]
[null,null,null,null,null,null,null,null,null,null,null,"Teacher",{"$f":"'Student Info'!C31","v":0}]
[null,null,{"$f":"'Student Info'!B9","v":"hhhhhhh"},null,null,null,null,null,null,null,null,"School",{"$f":"#REF!","v":{"$error":"#REF!"}}]
[null,null,null,null,null,null,null,null,null,null,null,"Class Period",{"$f":"#REF!","v":{"$error":"#REF!"}}]
[]
[]
[null,null,null,null,null,null,null,null,null,null,null,null,"Days From Pretest to Post Test",{"$f":"PrePost!K8","v":0}]

{"sheet":"Student 9","index":17,"n_rows":10,"n_cols":14,"rows_kept":10,"cut":false,"hidden":false,"merged":[[5,2,5,9]]}
[]
[]
[]
[]
[null,null,null,null,null,null,null,null,null,null,null,"Teacher",{"$f":"'Student Info'!C31","v":0}]
[null,null,{"$f":"'Student Info'!B10","v":"iiiiiiii"},null,null,null,null,null,null,null,null,"School",{"$f":"#REF!","v":{"$error":"#REF!"}}]
[null,null,null,null,null,null,null,null,null,null,null,"Class Period",{"$f":"#REF!","v":{"$error":"#REF!"}}]
[]
[]
[null,null,null,null,null,null,null,null,null,null,null,null,"Days From Pretest to Post Test",{"$f":"PrePost!K8","v":0}]

{"sheet":"Student 10","index":18,"n_rows":10,"n_cols":14,"rows_kept":10,"cut":false,"hidden":false,"merged":[[5,2,5,9]]}
[]
[]
[]
[]
[null,null,null,null,null,null,null,null,null,null,null,"Teacher",{"$f":"'Student Info'!C31","v":0}]
[null,null,{"$f":"'Student Info'!B11","v":"jjjjjjjj"},null,null,null,null,null,null,null,null,"School",{"$f":"#REF!","v":{"$error":"#REF!"}}]
[null,null,null,null,null,null,null,null,null,null,null,"Class Period",{"$f":"#REF!","v":{"$error":"#REF!"}}]
[]
[]
[null,null,null,null,null,null,null,null,null,null,null,null,"Days From Pretest to Post Test",{"$f":"PrePost!K8","v":0}]

{"sheet":"Student 11","index":19,"n_rows":10,"n_cols":14,"rows_kept":10,"cut":false,"hidden":false,"merged":[[5,2,5,9]]}
[]
[]
[]
[]
[null,null,null,null,null,null,null,null,null,null,null,"Teacher",{"$f":"'Student Info'!C31","v":0}]
[null,null,{"$f":"'Student Info'!B12","v":"kkkkkkk"},null,null,null,null,null,null,null,null,"School",{"$f":"#REF!","v":{"$error":"#REF!"}}]
[null,null,null,null,null,null,null,null,null,null,null,"Class Period",{"$f":"#REF!","v":{"$error":"#REF!"}}]
[]
[]
[null,null,null,null,null,null,null,null,null,null,null,null,"Days From Pretest to Post Test",{"$f":"PrePost!K8","v":0}]

{"sheet":"Student 12","index":20,"n_rows":10,"n_cols":14,"rows_kept":10,"cut":false,"hidden":false,"merged":[[5,2,5,9]]}
[]
[]
[]
[]
[null,null,null,null,null,null,null,null,null,null,null,"Teacher",{"$f":"'Student Info'!C31","v":0}]
[null,null,{"$f":"'Student Info'!B2","v":"AAAAA"},null,null,null,null,null,null,null,null,"School",{"$f":"#REF!","v":{"$error":"#REF!"}}]
[null,null,null,null,null,null,null,null,null,null,null,"Class Period",{"$f":"#REF!","v":{"$error":"#REF!"}}]
[]
[]
[null,null,null,null,null,null,null,null,null,null,null,null,"Days From Pretest to Post Test",{"$f":"PrePost!K8","v":0}]

{"sheet":"Student 13","index":21,"n_rows":10,"n_cols":14,"rows_kept":10,"cut":false,"hidden":false,"merged":[[5,2,5,9]]}
[]
[]
[]
[]
[null,null,null,null,null,null,null,null,null,null,null,"Teacher",{"$f":"'Student Info'!C31","v":0}]
[null,null,{"$f":"'Student Info'!B14","v":"mmmmmmmmm"},null,null,null,null,null,null,null,null,"School",{"$f":"#REF!","v":{"$error":"#REF!"}}]
[null,null,null,null,null,null,null,null,null,null,null,"Class Period",{"$f":"#REF!","v":{"$error":"#REF!"}}]
[]
[]
[null,null,null,null,null,null,null,null,null,null,null,null,"Days From Pretest to Post Test",{"$f":"PrePost!K8","v":0}]

{"sheet":"Student 14","index":22,"n_rows":10,"n_cols":14,"rows_kept":10,"cut":false,"hidden":false,"merged":[[5,2,5,9]]}
[]
[]
[]
[]
[null,null,null,null,null,null,null,null,null,null,null,"Teacher",{"$f":"'Student Info'!C31","v":0}]
[null,null,{"$f":"'Student Info'!B15","v":"nnnnnnnn"},null,null,null,null,null,null,null,null,"School",{"$f":"#REF!","v":{"$error":"#REF!"}}]
[null,null,null,null,null,null,null,null,null,null,null,"Class Period",{"$f":"#REF!","v":{"$error":"#REF!"}}]
[]
[]
[null,null,null,null,null,null,null,null,null,null,null,null,"Days From Pretest to Post Test",{"$f":"PrePost!K8","v":0}]

{"sheet":"Student 15","index":23,"n_rows":10,"n_cols":14,"rows_kept":10,"cut":false,"hidden":false,"merged":[[5,2,5,9]]}
[]
[]
[]
[]
[null,null,null,null,null,null,null,null,null,null,null,"Teacher",{"$f":"'Student Info'!C31","v":0}]
[null,null,{"$f":"'Student Info'!B16","v":"oooooooo"},null,null,null,null,null,null,null,null,"School",{"$f":"#REF!","v":{"$error":"#REF!"}}]
[null,null,null,null,null,null,null,null,null,null,null,"Class Period",{"$f":"#REF!","v":{"$error":"#REF!"}}]
[]
[]
[null,null,null,null,null,null,null,null,null,null,null,null,"Days From Pretest to Post Test",{"$f":"PrePost!K8","v":0}]

{"sheet":"Student 16","index":24,"n_rows":10,"n_cols":14,"rows_kept":10,"cut":false,"hidden":false,"merged":[[5,2,5,9]]}
[]
[]
[]
[]
[null,null,null,null,null,null,null,null,null,null,null,"Teacher",{"$f":"'Student Info'!C31","v":0}]
[null,null,{"$f":"'Student Info'!B17","v":"pppppppp"},null,null,null,null,null,null,null,null,"School",{"$f":"#REF!","v":{"$error":"#REF!"}}]
[null,null,null,null,null,null,null,null,null,null,null,"Class Period",{"$f":"#REF!","v":{"$error":"#REF!"}}]
[]
[]
[null,null,null,null,null,null,null,null,null,null,null,null,"Days From Pretest to Post Test",{"$f":"PrePost!K8","v":0}]

{"sheet":"Student 17","index":25,"n_rows":10,"n_cols":16,"rows_kept":10,"cut":false,"hidden":false,"merged":[[5,2,5,9]]}
[]
[]
[]
[]
[null,null,null,null,null,null,null,null,null,null,null,"Teacher",{"$f":"'Student Info'!C31","v":0}]
[null,null,{"$f":"'Student Info'!B18","v":"qqqqqqqqq"},null,null,null,null,null,null,null,null,"School",{"$f":"#REF!","v":{"$error":"#REF!"}}]
[null,null,null,null,null,null,null,null,null,null,null,"Class Period",{"$f":"#REF!","v":{"$error":"#REF!"}}]
[]
[null,null,null,null,null,null,null,null,null,null,null,null,null,null,{"$f":"PrePost!L11","v":0},"Compound/Complex Sentences"]
[null,null,null,null,null,null,null,null,null,null,null,null,"Days From Pretest to Post Test",{"$f":"PrePost!K8","v":0}]

{"sheet":"Student 18","index":26,"n_rows":10,"n_cols":14,"rows_kept":10,"cut":false,"hidden":false,"merged":[[5,2,5,9]]}
[]
[]
[]
[]
[null,null,null,null,null,null,null,null,null,null,null,"Teacher",{"$f":"'Student Info'!C31","v":0}]
[null,null,{"$f":"'Student Info'!B19","v":"rrrrrrrr"},null,null,null,null,null,null,null,null,"School",{"$f":"#REF!","v":{"$error":"#REF!"}}]
[null,null,null,null,null,null,null,null,null,null,null,"Class Period",{"$f":"#REF!","v":{"$error":"#REF!"}}]
[]
[]
[null,null,null,null,null,null,null,null,null,null,null,null,"Days From Pretest to Post Test",{"$f":"PrePost!K8","v":0}]

{"sheet":"Student 19","index":27,"n_rows":10,"n_cols":14,"rows_kept":10,"cut":false,"hidden":false,"merged":[[5,2,5,9]]}
[]
[]
[]
[]
[null,null,null,null,null,null,null,null,null,null,null,"Teacher",{"$f":"'Student Info'!C31","v":0}]
[null,null,{"$f":"'Student Info'!B20","v":"sssssssss"},null,null,null,null,null,null,null,null,"School",{"$f":"#REF!","v":{"$error":"#REF!"}}]
[null,null,null,null,null,null,null,null,null,null,null,"Class Period",{"$f":"#REF!","v":{"$error":"#REF!"}}]
[]
[]
[null,null,null,null,null,null,null,null,null,null,null,null,"Days From Pretest to Post Test",{"$f":"PrePost!K8","v":0}]

{"sheet":"Student 20","index":28,"n_rows":10,"n_cols":14,"rows_kept":10,"cut":false,"hidden":false,"merged":[[5,2,5,9]]}
[]
[]
[]
[]
[null,null,null,null,null,null,null,null,null,null,null,"Teacher",{"$f":"'Student Info'!C31","v":0}]
[null,null,{"$f":"'Student Info'!B21","v":"tttttttttt"},null,null,null,null,null,null,null,null,"School",{"$f":"#REF!","v":{"$error":"#REF!"}}]
[null,null,null,null,null,null,null,null,null,null,null,"Class Period",{"$f":"#REF!","v":{"$error":"#REF!"}}]
[]
[]
[null,null,null,null,null,null,null,null,null,null,null,null,"Days From Pretest to Post Test",{"$f":"PrePost!K8","v":0}]